Cogmind - Beta 16 --- EXPLORER MODE // 2026.01.31 @ 14:28:28 Player: calgi Result: Destroyed by SA-XTU(R) with Subdweller Beam Cannon Performance ------------- Evolutions (0) 0 Regions Visited (3) 600 Robots Destroyed (17) 85 Value Destroyed (494) 494 Prototype IDs (1) 20 Alien Tech Used (0) 0 Bonus (0) 0 TOTAL SCORE: 1199 Bonus ------- None Cogmind --------- Core Integrity 0/250 Matter 300/300 Energy 91/100 System Corruption 0% Temperature Hot (210) Movement Core (100) Ox1 Location -10/Subcaves Parts ------- > --- POWER (2) -------- (None) > --- PROPULSION (2) --- (None) > --- UTILITY (2) ------ Terrain Scanner Power Shielding > --- WEAPON (2) ------- Advanced Beam Cannon > --- INVENTORY (5) ---- Medium Storage Unit Weapon Shielding Peak State ------------ > --- POWER ------------ Ion Engine > --- PROPULSION ------- Aluminum Leg Subdweller Monowheel > --- UTILITY ---------- Terrain Scanner Power Shielding > --- WEAPON ----------- Advanced Beam Cannon EMP Blaster > --- INVENTORY -------- Medium Storage Unit Weapon Shielding [Rating: 11] Favorites ----------- Power Ion Engine Engine Ion Engine Propulsion Aluminum Leg Leg Aluminum Leg Wheel Subdweller Monowheel Utility Power Shielding Device Terrain Scanner Protection Power Shielding Weapon Advanced Beam Cannon Energy Gun EM Pulse Gun Energy Cannon Advanced Beam Cannon Ballistic Gun Light Assault Rifle Launcher EMP Blaster Build | -11 -10 -10 -10 ------- Run | Yrd Mat Min Sub Slots Evolved 1 | . 1 . . Power 1 | . 1 . . Propulsion . | . . . . Utility . | . . . . Weapon . | . . . . Parts Attached 12 | 7 1 3 1 Power 2 | 1 . 1 . Engine 2 | 1 . 1 . Core . | . . . . Reactor . | . . . . Propulsion 4 | 2 . 1 1 Treads . | . . . . Leg 3 | 2 . 1 . Wheel 1 | . . . 1 Hover . | . . . . Flight . | . . . . Utility 2 | 2 . . . Device 1 | 1 . . . Storage . | . . . . Processor . | . . . . Hackware . | . . . . Protection 1 | 1 . . . Artifact . | . . . . Weapon 4 | 2 1 1 . Energy Gun 1 | 1 . . . Energy Cannon 1 | . 1 . . Ballistic Gun 1 | 1 . . . Ballistic Cannon . | . . . . Launcher 1 | . . 1 . Special Weapon . | . . . . Impact Weapon . | . . . . Slashing Weapon . | . . . . Piercing Weapon . | . . . . Special Melee Weapon . | . . . . Unidentified Prototypes 1 | . 1 . . Parts Lost 8 | . . 3 5 Power 2 | . . 1 1 Propulsion 4 | . . 2 2 Utility . | . . . . Weapon 2 | . . . 2 Highest Loss Streak 5 | . . 1 5 To Critical Strikes 1 | . . . 1 Average Backups 3 | 1 3 3 2 Power . | . . . . Propulsion . | . . . . Utility 1 | . 1 2 2 Weapon 1 | . 1 1 . Tool/Special . | . . . . Unused Backups 2 | . . . 2 Power . | . . . . Propulsion . | . . . . Utility 2 | . . . 2 Weapon . | . . . . Tool/Special . | . . . . Average Slot Usage (%) 81 | . 87 81 75 Engine 11 | . 12 9 12 Leg 20 | . 25 22 11 Device 12 | . 12 12 12 Protection 12 | . 12 12 12 Energy Gun 4 | . 12 . . Energy Cannon 10 | . 8 12 12 Ballistic Gun 4 | . 3 1 11 Launcher 3 | . . 10 . Peak Build Rating 11 | 7 9 10 11 Average Rating 8 | 2 8 9 8 On Entrance 6 | . 7 9 8 Avg Prop Armor Cover (%) 10 | . . . 10 Naked Turns . | . . . . Heaviest Build 15 | 8 11 15 12 Greatest Support 20 | 20 20 20 20 Greatest Overweight (x) 1 | . . 1 1 Average Overweight (x) . | . . . . Largest Inventory Capacity 5 | 5 5 5 5 Average Capacity 5 | 5 5 5 5 Most Carried 5 | 5 4 5 4 Average Carried 3 | 1 3 3 2 Final Capacity 5 | 5 5 5 5 Final Carried 4 | 1 4 3 2 Class Distribution -------------------- 100% | Hacker-Mutant Dominant Class ---------------- Hacker-Mutant | -10/Materials Hacker-Mutant | -10/Mines Hacker-Mutant | -10/Subcaves Resources | -11 -10 -10 -10 ----------- Run | Yrd Mat Min Sub Matter Collected 367 | 257 46 60 4 Remotely . | . . . . Salvage Created 758 | 41 314 304 99 Parts 29 | 3 15 5 6 Haulers Intercepted . | . . . . Recyclers Shooed 1 | . . 1 . Parts Field Recycled . | . . . . Retrieved Matter . | . . . . Parts Self-Destructed . | . . . . Prevented . | . . . . Parts Restored . | . . . . Kills | -11 -10 -10 -10 ------- Run | Yrd Mat Min Sub Combat Hostiles Destroyed 21 | 1 8 9 3 Guns 5 | 1 4 . . Cannons 14 | . 4 8 2 AOE 1 | . . 1 . Classes Destroyed 7 | 1 2 3 1 Tunneler 1 | . . 1 . Recycler 1 | . . 1 . Watcher 1 | . 1 . . Swarmer 3 | . 2 . 1 Grunt 9 | 1 6 2 . Subdweller 2 | . . . 2 Assembled 7 | . . 7 . Best Kill Streak 4 | 1 4 4 2 Combat Bots Only 4 | 1 4 4 2 Max Kills in Single Turn 1 | 1 1 1 1 Gunslinging . | . . . . Exploded 1 | . . 1 . Melee . | . . . . Uniques/NPCs Destroyed . | . . . . Combat | -11 -10 -10 -10 -------- Run | Yrd Mat Min Sub Hostile Shots Fired 156 | 7 66 42 41 Missed 47 | 2 23 9 13 Hits 109 | 5 43 33 28 Melee 7 | . . 7 . Projectile 102 | 5 43 26 28 Critical Strikes 3 | . 1 . 2 Damage Taken 1047 | 32 287 339 389 Core 257 | . 49 47 161 Absorbed by Shields . | . . . . Redirected to Shielding 35 | . 10 14 11 Ignored by Resistances 650 | 22 190 204 234 Core Remaining (%) 100 | 100 . . . Volleys Fired 76 | 7 32 28 9 Largest 2 | 1 2 2 2 Hottest 101 | 20 68 101 101 Shots Fired 93 | 7 40 35 11 Gun 35 | 7 24 3 1 Cannon 53 | . 16 28 9 Launcher 5 | . . 4 1 Special . | . . . . Kinetic 27 | 7 16 3 1 Thermal 53 | . 16 28 9 Explosive . | . . . . Electromagnetic 13 | . 8 4 1 Robot Hit Streak 12 | 7 11 12 11 Robot Miss Streak 3 | . 3 2 . Penetration Max . | . . . . Secondary Targets 1 | . 1 . . Max Gunslinging Chain 1 | . 1 . . Shots Hit Robots 75 | 7 30 28 10 Core Hits 36 | 2 16 14 4 Critical Kills 1 | . . . 1 Critical Parts Destroyed . | . . . . Critical Strikes 2 | . 1 . 1 Meltdown 1 | . . . 1 Corrupt 1 | . 1 . . Melee Attacks . | . . . . Impact . | . . . . Slashing . | . . . . Piercing . | . . . . Sneak Attacks . | . . . . Combat Hostiles . | . . . . Follow-up Attacks . | . . . . Damage Inflicted 1408 | 54 387 665 302 Guns 266 | 54 203 9 . Cannons 882 | . 184 512 186 Explosions 256 | . . 140 116 Melee . | . . . . Ramming 4 | . . 4 . Kinetic 183 | 54 120 9 . Thermal 882 | . 184 512 186 Explosive . | . . . . Electromagnetic 339 | . 83 140 116 Impact . | . . . . Slashing . | . . . . Piercing . | . . . . Highest Corruption . | . . . . Average Corruption . | . . . . Corruption Purged . | . . . . Corruption Blocked . | . . . . Overload Shots . | . . . . Overflow Damage . | . . . . Projectiles . | . . . . Explosions . | . . . . Melee . | . . . . Knockbacks . | . . . . Impact . | . . . . Kinetic . | . . . . Secondary . | . . . . Self-Inflicted Damage . | . . . . Shots . | . . . . Rammed . | . . . . Targets Rammed 1 | . . 1 . Kicked 1 | . . 1 . Crushed . | . . . . Highest Temperature 264 | . 198 264 219 Average Temperature 86 | . 78 84 140 Received Heat Transfer 623 | 30 210 44 339 Siege Activations . | . . . . Martial Activations . | . . . . Shielding Activations . | . . . . Robots Disrupted . | . . . . Combat Hostiles . | . . . . Robots Corrupted . | . . . . Combat Hostiles . | . . . . Parts Fried . | . . . . Impact Corruptions . | . . . . Robots Melted 1 | . . . 1 Combat Hostiles 1 | . . . 1 Parts Melted 5 | . 1 3 1 Heat Transferred 1591 | . 333 925 333 Parts Sabotaged . | . . . . Parts Stolen . | . . . . Parts Stripped . | . . . . Power Chain Reactions . | . . . . Alert | -11 -10 -10 -10 ------- Run | Yrd Mat Min Sub Maximum Alert Level . | . . . . Low Security (%) 100 | 100 100 100 . Level 1 . | . . . . Level 2 . | . . . . Level 3 . | . . . . Level 4 . | . . . . Level 5 . | . . . . High Security . | . . . . Max Security . | . . . . Peak Influence 85 | 20 85 51 . Initial 9 | . 2 9 . Average 10 | 4 16 5 . Influence Increases 317 | 20 216 61 20 Destroy 0b10 Robot/C 240 | 20 160 40 20 Destroy 0b10 Robot/NC 15 | . 5 10 . Destroy Leader 42 | . 32 10 . Allied During Kill 1 | . . 1 . Disable Machine 4 | . 4 . . Lose Combat Pursuer 15 | . 15 . . Influence Decreases 317 | 15 186 96 20 Entered New Map 29 | . 3 26 . Time Decay 288 | 15 183 70 20 Squads Dispatched . | . . . . Investigation . | . . . . Extermination . | . . . . Reinforcement . | . . . . Assault . | . . . . Garrison . | . . . . Intercept . | . . . . Searches Triggered . | . . . . Construction Impeded . | . . . . Haulers Reinforced . | . . . . Active Scanning Responses . | . . . . Cargo Convoy Interrupts . | . . . . Stealth | -11 -10 -10 -10 --------- Run | Yrd Mat Min Sub Distress Signals 1 | . 1 . . Communications Jammed . | . . . . Distress Signals . | . . . . Times Spotted 37 | 1 11 15 10 Peak Tracking Total 8 | 1 5 7 8 Tactical Retreats 2 | . 1 1 . Traps | -11 -10 -10 -10 ------- Run | Yrd Mat Min Sub Traps Triggered . | . . . . Indirectly . | . . . . Trap Hack Attempts . | . . . . Triggered . | . . . . Disarmed . | . . . . Reprogrammed . | . . . . Reused . | . . . . Traps Extracted . | . . . . Installed . | . . . . Triggered . | . . . . Machines | -11 -10 -10 -10 ---------- Run | Yrd Mat Min Sub Machines Disabled 3 | . 3 . . Max in Single Turn 1 | . 1 . . Machines Repaired . | . . . . Machines Dismantled . | . . . . Machines Sabotaged . | . . . . Overloaded Fab Kills . | . . . . Hacking | -11 -10 -10 -10 --------- Run | Yrd Mat Min Sub Machines Accessed 3 | . 3 . . Terminals 3 | . 3 . . Fabricators . | . . . . Repair Stations . | . . . . Recycling Units . | . . . . Scanalyzers . | . . . . Garrison Access . | . . . . Total Hacks 6 | . 6 . . Successful 6 | . 6 . . Failed . | . . . . Catastrophic . | . . . . Database Lockouts . | . . . . Manual . | . . . . Terminals 6 | . 6 . . Fabricators . | . . . . Repair Stations . | . . . . Recycling Units . | . . . . Scanalyzers . | . . . . Garrison Access . | . . . . Terminal Hacks 6 | . 6 . . Record 4 | . 4 . . Alert Level 1 | . 1 . . Dispatch Records 1 | . 1 . . Fabricator Hacks . | . . . . Repair Station Hacks . | . . . . Recycling Unit Hacks . | . . . . Scanalyzer . | . . . . Garrison Access Hacks . | . . . . Unauthorized Hacks . | . . . . Terminals . | . . . . Fabricators . | . . . . Repair Stations . | . . . . Recycling Units . | . . . . Scanalyzers . | . . . . Garrison Access . | . . . . Data Cores Recovered . | . . . . Used . | . . . . Hacking Detections 2 | . 2 . . Full Trace Events . | . . . . Feedback Events . | . . . . Feedback Blocked . | . . . . Robot Schematics Acquired . | . . . . Robots Built . | . . . . Authchips . | . . . . Time . | . . . . Total Robot Build Rating . | . . . . Part Schematics Acquired . | . . . . Parts Built . | . . . . Authchips . | . . . . Time . | . . . . Total Part Build Rating . | . . . . Part Studies Acquired . | . . . . Parts Repaired . | . . . . Time . | . . . . Parts Recycled . | . . . . Recycled Matter . | . . . . Retrieved Matter . | . . . . Retrieved Components . | . . . . Parts Scanalyzed . | . . . . Part Schematics Acquired . | . . . . Parts Damaged . | . . . . Bothacking | -11 -10 -10 -10 ------------ Run | Yrd Mat Min Sub Used RIF Installer . | . . . . Robots Hacked . | . . . . Non-combat . | . . . . Combat . | . . . . Robot Hacks Applied . | . . . . Relay Couplers Released . | . . . . Fabnet Peak Effective % . | . . . . Robots Rewired . | . . . . Allies Hacked . | . . . . Hacks Repelled . | . . . . Allies | -11 -10 -10 -10 -------- Run | Yrd Mat Min Sub Total Allies 2 | . . 2 . Largest Group 2 | . . 2 . Highest-Rated Group 51 | . . 51 . Highest-Rated Ally 31 | . . 31 . Total Orders . | . . . . Ally Attacks 18 | . . 18 . Total Damage 251 | . . 251 . Kills 8 | . . 8 . Allies Corrupted . | . . . . Allies Melted . | . . . . Intel | -11 -10 -10 -10 ------- Run | Yrd Mat Min Sub Active Infowar (turns) 1217 | 3 450 430 334 Terrain 1217 | 3 450 430 334 Robot Analysis Total . | . . . . Derelict Logs Recovered . | . . . . Drone Launches . | . . . . Drone Recoveries . | . . . . Exploration | -11 -10 -10 -10 ------------- Run | Yrd Mat Min Sub Turns Passed 1304 | 90 450 430 334 Spaces Moved 785 | 94 258 261 172 Core 71 | 71 . . . Treads . | . . . . Legs 695 | 23 258 261 153 Wheels 19 | . . . 19 Hover . | . . . . Flight . | . . . . Fastest Speed 50 | 50 120 120 110 Average Speed 130 | 67 120 129 181 Slowest Speed 190 | 120 120 190 190 Overloaded Moves . | . . . . Propulsion Burnouts . | . . . . Robots Hopped . | . . . . Potential Cave-ins . | . . . . Cave-ins Triggered . | . . . . Exploration Rate (%) 29 | 7 42 58 10 Regions Visited 3 Branch Regions 2 Pre-discovered Areas . | . . . . Known Exits Taken 3 | 1 1 1 . Unknown Exits Taken . | . . . . Scrap Searched . | . . . . Spaces Dug . | . . . . Terrain Destroyed . | . . . . Melee . | . . . . Projectile . | . . . . AOE . | . . . . Terrain Rammed . | . . . . Walls Destroyed . | . . . . Machines Disabled . | . . . . Actions | -11 -10 -10 -10 --------- Run | Yrd Mat Min Sub Total 979 | 115 361 319 184 Wait 89 | . 68 21 . Move 782 | 93 257 260 172 Hop . | . . . . Pick Up 14 | 8 3 2 1 Fast Attach . | . . . . Attach 13 | 7 . 4 2 Detach 1 | . . 1 . Swap 2 | . 1 1 . Drop 1 | . . 1 . Fire 76 | 7 32 28 9 Melee . | . . . . Ram . | . . . . Kick 1 | . . 1 . Crush . | . . . . Escape Stasis . | . . . . Rewire . | . . . . Trap . | . . . . Miscellaneous . | . . . . Route ------- -11/Scrapyard -10/Materials (discovered 2 exits: *Min / *Sub) -10/Mines -10/Subcaves History --------- Turn | Location | Event 2 | -11/Scrapyard | Met Revision 17 41 | -11/Scrapyard | Identified exit to Materials 41 | -11/Scrapyard | Discovered exit to Materials (range 8) 91 | -11/Scrapyard | Entered Materials 91 | -10/Materials | Evolved 1 slot: Power x1 263 | -10/Materials | Identified exit to Subcaves 263 | -10/Materials | Discovered exit to Subcaves (range 11) 318 | -10/Materials | Build established: Hacker-Mutant 508 | -10/Materials | Identified exit to Mines 508 | -10/Materials | Discovered exit to Mines (range 12) 541 | -10/Materials | Entered Mines 608 | -10/Mines | Met a Derelict bent on vengeance 724 | -10/Mines | Assembled infested the area 935 | -10/Mines | Discovered exit to Subcaves (range 15) 971 | -10/Mines | Entered Subcaves 972 | -10/Subcaves | Approached by a straggling Scientist 1255 | -10/Subcaves | Shifting Twisted Machinery released Sub. Monowheel 1257 | -10/Subcaves | Shifting Twisted Machinery released Riot Gun 1283 | -10/Subcaves | Ambushed by swarm of Subdwellers 1289 | -10/Subcaves | Ambushed by Subdwellers from Twisted Machinery 1295 | -10/Subcaves | Core integrity fell below 50% 1299 | -10/Subcaves | Core integrity fell below 20% 1305 | -10/Subcaves | Destroyed by SA-XTU(R) with Subdweller Beam Cannon Last Messages --------------- K3-R72(R) destroyed. HV Slug penetrates VB-AF7(R). VB-AF7(R) destroyed. Sub. Monowheel melted. DU-9G8(R) destroyed. HV Slug penetrates Wall. HV Slug penetrates AD-DIY(R). 78-KWL(R) affixes Scrap Shield Fragment to Scrap Shield. Sub. Monowheel destroyed. AD-DIY(R) suffers critical hit (Burn). 78-KWL(R) misfires. 78-KWL(R) suffers critical hit (Burn). AD-DIY(R) destroyed. Ion Engine destroyed. VP-6EI(R) suffers critical hit (Meltdown). [Achievement: It's Just You] HV Slug penetrates 8A-B4R(R). 8A-B4R(R) suffers critical hit (Destroy). [Achievement: First Step to Greatness] Map ----- +----------------------------------------------------+ | ???????????????????????????????????????????##????# | | ????????????????????????????????????????#????????# | | ???????????????????????????????????????????????#?# | | ?????????????????????????????????????????????#??## | | ????????????????????????????????????????#?????###% | | ???????????????????????????????????????????#???# % | | ?????????????????????????????????????????????#?# | | ??????????????????????????????????????????????## | | ??????????????????????????????????????????????# | | ?????????????????????????????????????????#????#### | | ????????????????????????????????????????????#????# | | ??????????????????????????????????#????##?#?#????? | | ???????????????????????????????????????????#?????? | | ?????????????????????????????????????????????????? | | ????????????????????????????????????????????#??##? | | ???????????????????????????#???????????????????### | | ??????????????????????????##????????????????????#% | | ???????????????#??????????#???????????#??????##?# | | ????????????????????????????????????????????#?#### | | ??????????????????###? ??????###??????????????#?## | | ???????????????# ## ""##?????# ##?????????###???# | | ???????????????# #!#|###### !###??#???##"##??## | | ??????????????## *!%] % ####???#"" #??# | | ??????????????# %&%R%R* # g = #####"" #??## | | ??????????????# %R%!!!; # g ##""" #???# | | ???????????????????#=!&* @ h g "[""##### | | ???????????????????## """ ## | | ????????????????????## # " # # ### | | ?????????????????????# #### """ ###### ### | | ?????????????????????# ??## " ###??## ## | | ?????????????????????# ??? " ##????#" | | ?????????????????????# ??## ##?????#""" | | ?????????????????????#????### ##??#???# """ | | ???????????????????????? ??# ???????# """ | | ???????????????????????????# #??#??# """ | | ?????????????????#???? ???? #?????## " | | ???????????????????????????? ??????###### #### | | ????????????????????????????# %???????????# ###??? | | ????????????????????????????? ???????#????###????? | | ????????????????????????????????????#?#?????##???? | | ?????????????????????????????????????????????????? | | ?????????????????????????????????????????????????? | | ?????????????????????????????????????????????????? | | ?????????????????????????????????????????????????? | | ???????????????????????????????????????????#?????? | | ?????????????????????????????????????????????????? | | ?????????????????????????????????????????????????? | | ?????????????????????????????????????????????????? | | ?????????????????????????????????????????????????? | | ?????????????????????????????????????????????????? | +----------------------------------------------------+ Best States ------------- Heat Dissipation 25 Energy Generation 10 Energy Capacity 250 Matter Stores 300 Matter Capacity 300 Sight Range 16 Terrain Scan Range 14 Terrain Scan Density 10 Resistance: KI 35 Resistance: TH 35 Resistance: EX 35 Resistance: EM 35 Resistance: I 35 Resistance: S 35 Resistance: P 35 Power Shielding 33 Evasion (%) 55 Offensive Hacking 20 Item Schematics ----------------- None Robot Schematics ------------------ None Fabricated ------------ Nothing Repaired ---------- Nothing Studied --------- None Alien Tech Used ----------------- None Achievements -------------- First Step to Greatness I Survived The Infestation It's Just You Risk Taker There's More Where That Came From Challenges ------------ None Game ------ Seed CouplerSmallRipteeth Manual? 0 Play Time 00:12:43 Cumulative 0.1 hours Start 2026.01.30 @ 08:58:03 End 2026.01.31 @ 14:28:28 Sessions 1 Manual Loads 0 Difficulty Explorer Special Mode None Game No. 1 Rogue 0 Adventurer 0 Explorer 1 Win Type - Total 0 Types 0/0/0/0/0/0/0/0/0/0 Lore% 0 Gallery% 1 Achievement% 1 Wizard Run 0 Options --------- Layout 1 ASCII 0 Keyboard 0 Movement Mouse Keybinds 0 Fullscreen 2 Font 24/Smallcaps Map View 50x35 Zoom Use 0% Tactical HUD 0 Map Filters NONE Filters NONE Steam 1 RUN: 68a528bc-a641-4c17-b7a7-98213d1894d6